[Event "*** Titled Tuesday Blitz"]
[Site "Chess.com"]
[Date "2020.05.26"]
[Round "4"]
[White "ChessicallyInclined"]
[Black "VerdeNotte"]
[Result "1/2-1/2"]
[WhiteElo "2528"]
[BlackElo "2770"]
[TimeControl "180+1"]
[EndTime "10:39:43 PDT"]
[Termination "Game drawn by repetition"]

1. d4 {[%clk 0:03:00.9]} 1... Nf6 {[%clk 0:02:59.4]} 2. c4 {[%clk 0:03:01.3]}
2... g6 {[%clk 0:02:57.9]} 3. Nc3 {[%clk 0:03:01.2]} 3... Bg7 {[%clk 0:02:58]}
4. e4 {[%clk 0:03:00.7]} 4... d6 {[%clk 0:02:58.5]} 5. f3 {[%clk 0:03:01.1]}
5... O-O {[%clk 0:02:56.5]} 6. Be3 {[%clk 0:03:01.2]} 6... c5 {[%clk 0:02:54.4]}
7. Nge2 {[%clk 0:03:01.6]} 7... Qa5 {[%clk 0:02:49.1]} 8. Nc1 {[%clk 0:03:00.9]}
8... cxd4 {[%clk 0:02:48.9]} 9. Nb3 {[%clk 0:03:00.6]} 9... Qxc3+ {[%clk
0:02:45.4]} 10. bxc3 {[%clk 0:03:00.7]} 10... dxe3 {[%clk 0:02:45.6]} 11. Be2
{[%clk 0:02:41.7]} 11... Nc6 {[%clk 0:02:29.3]} 12. O-O {[%clk 0:02:39.6]} 12...
Nh5 {[%clk 0:02:27.7]} 13. f4 {[%clk 0:02:26]} 13... Bxc3 {[%clk 0:02:12]} 14.
Bxh5 {[%clk 0:02:25.4]} 14... Bxa1 {[%clk 0:01:50.8]} 15. Qxa1 {[%clk 0:02:19]}
15... gxh5 {[%clk 0:01:50.6]} 16. Qc3 {[%clk 0:02:14.6]} 16... e2 {[%clk
0:01:44.6]} 17. Re1 {[%clk 0:02:10.4]} 17... f5 {[%clk 0:01:39.6]} 18. Qg3+
{[%clk 0:01:51.3]} 18... Kh8 {[%clk 0:01:37.2]} 19. Qc3+ {[%clk 0:01:51.2]}
19... Kg8 {[%clk 0:01:22.9]} 20. Qg3+ {[%clk 0:01:41.5]} 20... Kh8 {[%clk
0:01:20.2]} 21. Rxe2 {[%clk 0:01:27.2]} 21... fxe4 {[%clk 0:01:14.1]} 22. Rxe4
{[%clk 0:01:15.5]} 22... Bf5 {[%clk 0:01:13.1]} 23. Re3 {[%clk 0:01:15.1]} 23...
Rf7 {[%clk 0:01:04.1]} 24. c5 {[%clk 0:01:05.8]} 24... d5 {[%clk 0:01:03.8]} 25.
Qh4 {[%clk 0:00:46.9]} 25... Bg6 {[%clk 0:01:00.8]} 26. Re1 {[%clk 0:00:33]}
26... Raf8 {[%clk 0:00:58.2]} 27. g3 {[%clk 0:00:29.3]} 27... a5 {[%clk
0:00:52.2]} 28. Rd1 {[%clk 0:00:24]} 28... e6 {[%clk 0:00:47.9]} 29. Qh3 {[%clk
0:00:19.3]} 29... Rf6 {[%clk 0:00:43.2]} 30. Nd4 {[%clk 0:00:18.7]} 30... Nxd4
{[%clk 0:00:42.2]} 31. Rxd4 {[%clk 0:00:19.6]} 31... Rc8 {[%clk 0:00:41.6]} 32.
Qh4 {[%clk 0:00:18.1]} 32... Kg7 {[%clk 0:00:41.4]} 33. Qg5 {[%clk 0:00:15]}
33... Rxc5 {[%clk 0:00:39.2]} 34. Qe5 {[%clk 0:00:15]} 34... Rc1+ {[%clk
0:00:32.6]} 35. Kg2 {[%clk 0:00:15.5]} 35... Bf5 {[%clk 0:00:27.9]} 36. Rd2
{[%clk 0:00:13.6]} 36... b5 {[%clk 0:00:18.4]} 37. h3 {[%clk 0:00:11.3]} 37...
Kf7 {[%clk 0:00:17.6]} 38. Qb2 {[%clk 0:00:09.5]} 38... Be4+ {[%clk 0:00:17.5]}
39. Kf2 {[%clk 0:00:09.8]} 39... Rh1 {[%clk 0:00:15.2]} 40. Qxb5 {[%clk
0:00:10]} 40... Rh2+ {[%clk 0:00:14.9]} 41. Ke3 {[%clk 0:00:10.5]} 41... Rxh3
{[%clk 0:00:15.5]} 42. Qd7+ {[%clk 0:00:09.6]} 42... Kg6 {[%clk 0:00:15.6]} 43.
Qe8+ {[%clk 0:00:09.8]} 43... Kg7 {[%clk 0:00:16.1]} 44. Qe7+ {[%clk 0:00:10.2]}
44... Rf7 {[%clk 0:00:15]} 45. Qg5+ {[%clk 0:00:09.9]} 45... Bg6 {[%clk
0:00:14.7]} 46. Qe5+ {[%clk 0:00:10.2]} 46... Kg8 {[%clk 0:00:11.9]} 47. Rb2
{[%clk 0:00:07.8]} 47... Rxg3+ {[%clk 0:00:11.9]} 48. Kd4 {[%clk 0:00:08.3]}
48... Rd3+ {[%clk 0:00:11.6]} 49. Kc5 {[%clk 0:00:08.3]} 49... d4 {[%clk
0:00:04.2]} 50. Rb8+ {[%clk 0:00:08.2]} 50... Rf8 {[%clk 0:00:04.1]} 51. Qxe6+
{[%clk 0:00:08.3]} 51... Bf7 {[%clk 0:00:03.6]} 52. Rxf8+ {[%clk 0:00:08]} 52...
Kxf8 {[%clk 0:00:04.5]} 53. Qd6+ {[%clk 0:00:08.3]} 53... Kg7 {[%clk 0:00:04.2]}
54. Qe5+ {[%clk 0:00:08.9]} 54... Kg8 {[%clk 0:00:03.9]} 55. Qb8+ {[%clk
0:00:08.9]} 55... Kg7 {[%clk 0:00:04.4]} 56. Qe5+ {[%clk 0:00:09.2]} 56... Kf8
{[%clk 0:00:04.7]} 57. Qg5 {[%clk 0:00:09.8]} 57... Rd1 {[%clk 0:00:03.2]} 58.
Qd8+ {[%clk 0:00:09.6]} 58... Kg7 {[%clk 0:00:03.5]} 59. Qg5+ {[%clk 0:00:09.8]}
59... Kf8 {[%clk 0:00:04]} 60. Qd8+ {[%clk 0:00:10]} 60... Be8 {[%clk
0:00:04.6]} 61. Qf6+ {[%clk 0:00:09.5]} 61... Kg8 {[%clk 0:00:05.2]} 62. Qg5+
{[%clk 0:00:09.5]} 62... Kf8 {[%clk 0:00:05.1]} 63. Qf6+ {[%clk 0:00:09.8]}
63... Bf7 {[%clk 0:00:05.6]} 64. Qd8+ {[%clk 0:00:10]} 1/2-1/2

[Event "*** Titled Tuesday Blitz"]
[Site "Chess.com"]
[Date "2020.05.26"]
[Round "4"]
[White "CHESSMASTER759"]
[Black "Oleksandr_Bortnyk"]
[Result "0-1"]
[WhiteElo "2649"]
[BlackElo "2980"]
[TimeControl "180+1"]
[EndTime "10:39:45 PDT"]
[Termination "Oleksandr_Bortnyk won by resignation"]

1. e4 {[%clk 0:03:00.9]} 1... Nf6 {[%clk 0:02:59.2]} 2. d3 {[%clk 0:03:00.1]}
2... d5 {[%clk 0:02:57.8]} 3. Nd2 {[%clk 0:03:00.1]} 3... e5 {[%clk 0:02:57.8]}
4. Ngf3 {[%clk 0:02:59.1]} 4... Nc6 {[%clk 0:02:57.9]} 5. Be2 {[%clk 0:02:59.6]}
5... Be7 {[%clk 0:02:50.8]} 6. O-O {[%clk 0:02:59.1]} 6... O-O {[%clk
0:02:51.5]} 7. c3 {[%clk 0:02:56.9]} 7... h6 {[%clk 0:02:51.6]} 8. h3 {[%clk
0:02:53.3]} 8... Be6 {[%clk 0:02:51.7]} 9. Re1 {[%clk 0:02:52.6]} 9... a5 {[%clk
0:02:50.3]} 10. a4 {[%clk 0:02:50.3]} 10... Nd7 {[%clk 0:02:37.8]} 11. exd5
{[%clk 0:02:43.6]} 11... Bxd5 {[%clk 0:02:38.7]} 12. Nc4 {[%clk 0:02:44.1]}
12... f5 {[%clk 0:02:28]} 13. Nfd2 {[%clk 0:02:40.1]} 13... Nc5 {[%clk
0:02:21.7]} 14. Bf1 {[%clk 0:02:33.1]} 14... Bf6 {[%clk 0:01:55.9]} 15. Na3
{[%clk 0:02:28.7]} 15... Qd7 {[%clk 0:01:38.1]} 16. Nb5 {[%clk 0:02:25.5]} 16...
Rae8 {[%clk 0:01:34.6]} 17. Nc4 {[%clk 0:02:14.5]} 17... b6 {[%clk 0:01:32]} 18.
Be3 {[%clk 0:01:59.5]} 18... Ne6 {[%clk 0:01:29.2]} 19. Nca3 {[%clk 0:01:36.8]}
19... f4 {[%clk 0:01:24.4]} 20. Bc1 {[%clk 0:01:34.2]} 20... Ng5 {[%clk
0:01:18.4]} 21. Nc2 {[%clk 0:01:04.3]} 21... f3 {[%clk 0:00:43.1]} 22. Bxg5
{[%clk 0:00:59.6]} 22... fxg2 {[%clk 0:00:36.6]} 23. Bxg2 {[%clk 0:01:00.5]}
23... Bxg2 {[%clk 0:00:35.2]} 24. Kxg2 {[%clk 0:01:00.4]} 24... Bxg5 {[%clk
0:00:35]} 25. Qg4 {[%clk 0:00:51.7]} 25... Qxd3 {[%clk 0:00:32.8]} 26. Ne3
{[%clk 0:00:47.4]} 26... Rf4 {[%clk 0:00:19.3]} 27. Qe2 {[%clk 0:00:47.4]} 27...
Qg6 {[%clk 0:00:17.1]} 28. Kh1 {[%clk 0:00:44.2]} 28... Ref8 {[%clk 0:00:16.3]}
29. Ng4 {[%clk 0:00:42.4]} 29... h5 {[%clk 0:00:15.4]} 30. Nxe5 {[%clk
0:00:39.6]} 30... Nxe5 {[%clk 0:00:16.3]} 31. Qxe5 {[%clk 0:00:37.1]} 31... Qc6+
{[%clk 0:00:10.9]} 32. Kg1 {[%clk 0:00:33.3]} 32... Bh4 {[%clk 0:00:11.3]} 33.
Qe6+ {[%clk 0:00:30.8]} 33... Qxe6 {[%clk 0:00:09.8]} 34. Rxe6 {[%clk
0:00:31.7]} 34... Rxf2 {[%clk 0:00:08.3]} 35. Nxc7 {[%clk 0:00:31.8]} 35... Rxb2
{[%clk 0:00:08.4]} 36. Re8 {[%clk 0:00:28.3]} 36... Rxe8 {[%clk 0:00:07.7]} 37.
Nxe8 {[%clk 0:00:29.2]} 37... Bf2+ {[%clk 0:00:05.7]} 38. Kh1 {[%clk 0:00:26.8]}
38... Bg3 {[%clk 0:00:05.9]} 39. Rd1 {[%clk 0:00:22.2]} 39... Ra2 {[%clk
0:00:03.7]} 40. Nd6 {[%clk 0:00:19]} 40... Rxa4 {[%clk 0:00:03.7]} 41. Nc8
{[%clk 0:00:17.7]} 41... b5 {[%clk 0:00:03.8]} 42. Rf1 {[%clk 0:00:12.2]} 42...
b4 {[%clk 0:00:02.7]} 43. Ne7+ {[%clk 0:00:09.6]} 43... Kh7 {[%clk 0:00:02.7]}
44. cxb4 {[%clk 0:00:07.7]} 44... axb4 {[%clk 0:00:02.7]} 45. Rf5 {[%clk
0:00:07.9]} 45... g6 {[%clk 0:00:03.1]} 46. Rb5 {[%clk 0:00:05.8]} 46... Ra1+
{[%clk 0:00:02.9]} 47. Kg2 {[%clk 0:00:05.2]} 47... Bd6 {[%clk 0:00:03.7]} 48.
Nc8 {[%clk 0:00:04.3]} 48... Bf8 {[%clk 0:00:03.6]} 49. Nb6 {[%clk 0:00:03.9]}
49... Ra2+ {[%clk 0:00:03.4]} 50. Kf3 {[%clk 0:00:03.4]} 50... Ra3+ {[%clk
0:00:03.8]} 51. Kf4 {[%clk 0:00:03.2]} 51... Rxh3 {[%clk 0:00:03.8]} 52. Nd7
{[%clk 0:00:02.9]} 52... Bh6+ {[%clk 0:00:03.9]} 53. Ke5 {[%clk 0:00:03.3]}
53... Bg7+ {[%clk 0:00:04.1]} 54. Ke6 {[%clk 0:00:03.5]} 54... Re3+ {[%clk
0:00:04]} 55. Kf7 {[%clk 0:00:03.7]} 55... Rf3+ {[%clk 0:00:04.4]} 56. Ke7
{[%clk 0:00:04.2]} 56... b3 {[%clk 0:00:05.1]} 57. Rb7 {[%clk 0:00:03.4]} 57...
b2 {[%clk 0:00:05.4]} 58. Ke8 {[%clk 0:00:03.4]} 58... Kg8 {[%clk 0:00:05.3]}
59. Nc5 {[%clk 0:00:02.7]} 59... Rf8+ {[%clk 0:00:04.9]} 60. Ke7 {[%clk
0:00:01.4]} 60... Rf7+ {[%clk 0:00:05.8]} 61. Ke6 {[%clk 0:00:01.9]} 61... Rxb7
{[%clk 0:00:06.7]} 0-1

[Event "*** Titled Tuesday Blitz"]
[Site "Chess.com"]
[Date "2020.05.26"]
[Round "4"]
[White "lelya96"]
[Black "CyberneticLion"]
[Result "0-1"]
[WhiteElo "2270"]
[BlackElo "2445"]
[TimeControl "180+1"]
[EndTime "10:39:45 PDT"]
[Termination "CyberneticLion won by resignation"]

1. d4 {[%clk 0:03:00.9]} 1... d5 {[%clk 0:02:42.6]} 2. Nc3 {[%clk 0:03:00.1]}
2... Nf6 {[%clk 0:02:42.2]} 3. Bg5 {[%clk 0:02:59.6]} 3... Nbd7 {[%clk 0:02:29]}
4. Qd2 {[%clk 0:02:57.6]} 4... h6 {[%clk 0:02:24.9]} 5. Bh4 {[%clk 0:02:54]}
5... c6 {[%clk 0:02:17.5]} 6. f3 {[%clk 0:02:52.9]} 6... e5 {[%clk 0:02:11.1]}
7. dxe5 {[%clk 0:02:40.9]} 7... Nxe5 {[%clk 0:02:12]} 8. Qe3 {[%clk 0:02:40.9]}
8... Qe7 {[%clk 0:02:04.7]} 9. O-O-O {[%clk 0:02:00.9]} 9... Nc4 {[%clk
0:01:57.5]} 10. Qxe7+ {[%clk 0:01:59.7]} 10... Bxe7 {[%clk 0:01:52.9]} 11. Bf2
{[%clk 0:01:47.7]} 11... Nd6 {[%clk 0:01:28.8]} 12. e3 {[%clk 0:01:21.4]} 12...
Be6 {[%clk 0:01:20.8]} 13. Nge2 {[%clk 0:01:20.8]} 13... O-O {[%clk 0:01:09.9]}
14. Nf4 {[%clk 0:01:20.5]} 14... Rfe8 {[%clk 0:01:02]} 15. Bd3 {[%clk
0:01:10.7]} 15... a6 {[%clk 0:00:56]} 16. Nxe6 {[%clk 0:01:08.6]} 16... fxe6
{[%clk 0:00:56.9]} 17. e4 {[%clk 0:01:08.6]} 17... Nb5 {[%clk 0:00:56]} 18. Nxb5
{[%clk 0:00:57.1]} 18... axb5 {[%clk 0:00:56.9]} 19. Kb1 {[%clk 0:00:57.3]}
19... Ra4 {[%clk 0:00:51.4]} 20. exd5 {[%clk 0:00:57.1]} 20... exd5 {[%clk
0:00:52.2]} 21. Rhe1 {[%clk 0:00:55.7]} 21... Kf8 {[%clk 0:00:50.9]} 22. b3
{[%clk 0:00:50.6]} 22... Ra3 {[%clk 0:00:44.6]} 23. Bg6 {[%clk 0:00:47]} 23...
Rea8 {[%clk 0:00:43]} 24. Rxe7 {[%clk 0:00:47]} 24... Kxe7 {[%clk 0:00:43.9]}
25. Bc5+ {[%clk 0:00:46.9]} 25... Kd7 {[%clk 0:00:44]} 26. Bxa3 {[%clk
0:00:44.1]} 26... Rxa3 {[%clk 0:00:44.9]} 27. Re1 {[%clk 0:00:44.4]} 27... Ra8
{[%clk 0:00:40.9]} 28. Kb2 {[%clk 0:00:42.5]} 28... Rf8 {[%clk 0:00:39.4]} 29.
Bf5+ {[%clk 0:00:32.9]} 29... Kd8 {[%clk 0:00:35]} 30. Bh3 {[%clk 0:00:31.1]}
30... Ne8 {[%clk 0:00:33.9]} 31. Re6 {[%clk 0:00:29.2]} 31... Rf6 {[%clk
0:00:31.6]} 32. Re5 {[%clk 0:00:24.8]} 32... Nd6 {[%clk 0:00:28.9]} 33. Kc3
{[%clk 0:00:21.6]} 33... Nf7 {[%clk 0:00:28.7]} 34. Re1 {[%clk 0:00:20]} 34...
c5 {[%clk 0:00:26.4]} 35. a4 {[%clk 0:00:19.5]} 35... bxa4 {[%clk 0:00:25.4]}
36. bxa4 {[%clk 0:00:19.7]} 36... Ra6 {[%clk 0:00:25.9]} 37. Kb3 {[%clk
0:00:19.4]} 37... Rb6+ {[%clk 0:00:25.2]} 38. Ka3 {[%clk 0:00:19.8]} 38... Nd6
{[%clk 0:00:22.6]} 39. Be6 {[%clk 0:00:19]} 39... Nc4+ {[%clk 0:00:22.5]} 40.
Ka2 {[%clk 0:00:19]} 40... Rb2+ {[%clk 0:00:19.4]} 41. Ka1 {[%clk 0:00:19.3]}
41... Rb4 {[%clk 0:00:20.3]} 42. Bxd5 {[%clk 0:00:18.6]} 42... Rxa4+ {[%clk
0:00:20.1]} 43. Kb1 {[%clk 0:00:18.8]} 43... Rb4+ {[%clk 0:00:21]} 44. Kc1
{[%clk 0:00:19]} 44... Nd6 {[%clk 0:00:13.5]} 45. Rd1 {[%clk 0:00:18.8]} 45...
Ke7 {[%clk 0:00:12.2]} 46. Re1+ {[%clk 0:00:18.5]} 46... Kd7 {[%clk 0:00:12.6]}
47. Be6+ {[%clk 0:00:18.7]} 47... Kc7 {[%clk 0:00:12.1]} 48. c3 {[%clk
0:00:14.9]} 48... Ra4 {[%clk 0:00:11.5]} 49. Kc2 {[%clk 0:00:15.1]} 49... Ra8
{[%clk 0:00:11.1]} 50. Bd5 {[%clk 0:00:14.4]} 50... Re8 {[%clk 0:00:10.5]} 51.
Rxe8 {[%clk 0:00:13.7]} 51... Nxe8 {[%clk 0:00:11.4]} 52. Kd3 {[%clk 0:00:14.4]}
52... b6 {[%clk 0:00:11.3]} 53. c4 {[%clk 0:00:14]} 53... Kd6 {[%clk 0:00:11.7]}
54. Ke3 {[%clk 0:00:14]} 54... Nc7 {[%clk 0:00:12.1]} 55. Ke4 {[%clk 0:00:11.8]}
55... Nxd5 {[%clk 0:00:11]} 56. cxd5 {[%clk 0:00:12.3]} 56... b5 {[%clk
0:00:11.3]} 57. g4 {[%clk 0:00:11.5]} 57... b4 {[%clk 0:00:11.6]} 58. Kd3 {[%clk
0:00:11.4]} 58... b3 {[%clk 0:00:11]} 59. h4 {[%clk 0:00:12.3]} 59... c4+ {[%clk
0:00:09.5]} 60. Kc3 {[%clk 0:00:12.5]} 60... Kxd5 {[%clk 0:00:09.8]} 61. f4
{[%clk 0:00:12.9]} 61... Ke4 {[%clk 0:00:10]} 62. f5 {[%clk 0:00:11.9]} 62...
Kf4 {[%clk 0:00:09.6]} 63. g5 {[%clk 0:00:10.7]} 63... hxg5 {[%clk 0:00:10.5]}
64. hxg5 {[%clk 0:00:10.3]} 64... Kxg5 {[%clk 0:00:10.1]} 0-1

[Event "*** Titled Tuesday Blitz"]
[Site "Chess.com"]
[Date "2020.05.26"]
[Round "4"]
[White "ChessMavenYeti"]
[Black "kasparicy"]
[Result "1/2-1/2"]
[WhiteElo "2106"]
[BlackElo "2300"]
[TimeControl "180+1"]
[EndTime "10:39:46 PDT"]
[Termination "Game drawn - insufficient material"]

1. Nf3 {[%clk 0:03:00.9]} 1... Nf6 {[%clk 0:02:59.2]} 2. g3 {[%clk 0:03:00.2]}
2... g6 {[%clk 0:02:59.3]} 3. Bg2 {[%clk 0:03:00.9]} 3... Bg7 {[%clk 0:03:00]}
4. O-O {[%clk 0:03:01.5]} 4... d5 {[%clk 0:03:00.9]} 5. b3 {[%clk 0:02:59.6]}
5... O-O {[%clk 0:03:01.8]} 6. Bb2 {[%clk 0:02:59.6]} 6... b6 {[%clk 0:03:02.2]}
7. c4 {[%clk 0:02:58.8]} 7... Bb7 {[%clk 0:03:02.2]} 8. d3 {[%clk 0:02:58.8]}
8... c5 {[%clk 0:03:02.2]} 9. Nbd2 {[%clk 0:02:59.1]} 9... d4 {[%clk 0:03:01.5]}
10. b4 {[%clk 0:02:58.1]} 10... Nbd7 {[%clk 0:02:49.7]} 11. bxc5 {[%clk
0:02:56.9]} 11... bxc5 {[%clk 0:02:46.8]} 12. Rb1 {[%clk 0:02:55.6]} 12... Rb8
{[%clk 0:02:46]} 13. Nb3 {[%clk 0:02:55]} 13... Qc7 {[%clk 0:02:42.7]} 14. Ba3
{[%clk 0:02:53.4]} 14... e5 {[%clk 0:02:40.1]} 15. e3 {[%clk 0:02:51.5]} 15...
dxe3 {[%clk 0:02:33.2]} 16. fxe3 {[%clk 0:02:51]} 16... e4 {[%clk 0:02:33.6]}
17. Ng5 {[%clk 0:02:35.6]} 17... exd3 {[%clk 0:02:30.9]} 18. Qxd3 {[%clk
0:02:33.8]} 18... Bxg2 {[%clk 0:02:29.2]} 19. Kxg2 {[%clk 0:02:33.6]} 19... Ne5
{[%clk 0:02:14.6]} 20. Qc2 {[%clk 0:02:26.6]} 20... Qc6+ {[%clk 0:02:09]} 21.
Nf3 {[%clk 0:02:19.5]} 21... Nfg4 {[%clk 0:02:05.2]} 22. Qe2 {[%clk 0:02:03.6]}
22... Rfe8 {[%clk 0:01:48.4]} 23. Bxc5 {[%clk 0:01:59.5]} 23... Rxb3 {[%clk
0:01:46.7]} 24. Rxb3 {[%clk 0:01:58.3]} 24... Qxc5 {[%clk 0:01:47]} 25. Nxe5
{[%clk 0:01:53.9]} 25... Nxe5 {[%clk 0:01:43.7]} 26. h3 {[%clk 0:01:45.5]} 26...
Nxc4 {[%clk 0:01:39.2]} 27. e4 {[%clk 0:01:41.6]} 27... Qd4 {[%clk 0:01:11.4]}
28. Re1 {[%clk 0:00:56]} 28... Nd2 {[%clk 0:01:04.1]} 29. Rd3 {[%clk 0:00:53.9]}
29... Qxe4+ {[%clk 0:01:01]} 30. Qxe4 {[%clk 0:00:38]} 30... Nxe4 {[%clk
0:01:01.9]} 31. Rd7 {[%clk 0:00:37.6]} 31... a5 {[%clk 0:01:01.3]} 32. g4 {[%clk
0:00:25.7]} 32... f5 {[%clk 0:00:47.6]} 33. gxf5 {[%clk 0:00:25.4]} 33... gxf5
{[%clk 0:00:48.5]} 34. Rd5 {[%clk 0:00:24.7]} 34... Re5 {[%clk 0:00:45.9]} 35.
Rxe5 {[%clk 0:00:19.6]} 35... Bxe5 {[%clk 0:00:46.8]} 36. Rf1 {[%clk 0:00:19.3]}
36... Nd6 {[%clk 0:00:34.7]} 37. Re1 {[%clk 0:00:19.1]} 37... Bc3 {[%clk
0:00:24.8]} 38. Rd1 {[%clk 0:00:19]} 38... Nf7 {[%clk 0:00:17.8]} 39. Rd5 {[%clk
0:00:18.9]} 39... Nh6 {[%clk 0:00:15.7]} 40. Rd6 {[%clk 0:00:18.8]} 40... Kg7
{[%clk 0:00:15.9]} 41. Kf3 {[%clk 0:00:18.4]} 41... Nf7 {[%clk 0:00:16.1]} 42.
Ra6 {[%clk 0:00:16.7]} 42... Bd2 {[%clk 0:00:16.1]} 43. h4 {[%clk 0:00:16.1]}
43... Ne5+ {[%clk 0:00:16]} 44. Ke2 {[%clk 0:00:15.8]} 44... Bb4 {[%clk
0:00:15.9]} 45. Ke3 {[%clk 0:00:14.9]} 45... Bc5+ {[%clk 0:00:15.3]} 46. Kf4
{[%clk 0:00:15.1]} 46... Bd4 {[%clk 0:00:14.3]} 47. Kxf5 {[%clk 0:00:14.6]}
47... Nc4 {[%clk 0:00:13.8]} 48. Ke4 {[%clk 0:00:13.4]} 48... Bg1 {[%clk
0:00:11.8]} 49. Kd5 {[%clk 0:00:12.1]} 49... Ne3+ {[%clk 0:00:11.1]} 50. Ke4
{[%clk 0:00:12.3]} 50... Ng2 {[%clk 0:00:11.1]} 51. h5 {[%clk 0:00:10.2]} 51...
Nh4 {[%clk 0:00:09.9]} 52. Rxa5 {[%clk 0:00:10.5]} 52... Bb6 {[%clk 0:00:07.9]}
53. Ra6 {[%clk 0:00:09.8]} 53... Bd8 {[%clk 0:00:07.5]} 54. h6+ {[%clk
0:00:09.5]} 54... Kf7 {[%clk 0:00:07.1]} 55. Ra7+ {[%clk 0:00:09.4]} 55... Be7
{[%clk 0:00:07.6]} 56. Rb7 {[%clk 0:00:09.2]} 56... Ng6 {[%clk 0:00:07.2]} 57.
a4 {[%clk 0:00:09.7]} 57... Kf8 {[%clk 0:00:07]} 58. a5 {[%clk 0:00:09.9]} 58...
Bc5 {[%clk 0:00:06.6]} 59. Rxh7 {[%clk 0:00:09.6]} 59... Ne7 {[%clk 0:00:06.1]}
60. Rxe7 {[%clk 0:00:09]} 60... Bxe7 {[%clk 0:00:04.6]} 61. h7 {[%clk
0:00:09.5]} 61... Kg7 {[%clk 0:00:04.5]} 62. Kd5 {[%clk 0:00:09.4]} 62... Bh4
{[%clk 0:00:04.8]} 63. a6 {[%clk 0:00:08.9]} 63... Bf2 {[%clk 0:00:05.7]} 64.
Kc6 {[%clk 0:00:09.2]} 64... Kxh7 {[%clk 0:00:06]} 65. Kb7 {[%clk 0:00:10.1]}
65... Bg1 {[%clk 0:00:05.8]} 66. a7 {[%clk 0:00:11]} 66... Bxa7 {[%clk
0:00:05.6]} 1/2-1/2

[Event "*** Titled Tuesday Blitz"]
[Site "Chess.com"]
[Date "2020.05.26"]
[Round "4"]
[White "XDPS"]
[Black "CookiesAndIceCream"]
[Result "1-0"]
[WhiteElo "2701"]
[BlackElo "2322"]
[TimeControl "180+1"]
[EndTime "10:39:48 PDT"]
[Termination "XDPS won by resignation"]

1. d4 {[%clk 0:03:00.9]} 1... d5 {[%clk 0:02:54.9]} 2. Bf4 {[%clk 0:03:01.1]}
2... Nf6 {[%clk 0:02:54.8]} 3. e3 {[%clk 0:03:01.2]} 3... e6 {[%clk 0:02:55.4]}
4. Nf3 {[%clk 0:03:00.7]} 4... c5 {[%clk 0:02:55.3]} 5. c3 {[%clk 0:03:00.4]}
5... Bd6 {[%clk 0:02:55.3]} 6. Bg3 {[%clk 0:03:00.1]} 6... Qc7 {[%clk
0:02:55.4]} 7. Nbd2 {[%clk 0:02:58.4]} 7... Nbd7 {[%clk 0:02:55.3]} 8. Bd3
{[%clk 0:02:45.1]} 8... O-O {[%clk 0:02:52.8]} 9. O-O {[%clk 0:02:44.2]} 9...
Bxg3 {[%clk 0:02:51.7]} 10. hxg3 {[%clk 0:02:44.1]} 10... e5 {[%clk 0:02:51.9]}
11. dxe5 {[%clk 0:02:44.7]} 11... Nxe5 {[%clk 0:02:51.7]} 12. Nxe5 {[%clk
0:02:44.9]} 12... Qxe5 {[%clk 0:02:52.6]} 13. Qa4 {[%clk 0:02:45]} 13... Bd7
{[%clk 0:02:38.4]} 14. Qf4 {[%clk 0:02:44]} 14... Qe7 {[%clk 0:02:38.5]} 15. e4
{[%clk 0:02:37.9]} 15... Rfe8 {[%clk 0:02:01.8]} 16. Rfe1 {[%clk 0:02:33.1]}
16... Qe5 {[%clk 0:01:48]} 17. Qxe5 {[%clk 0:01:58.2]} 17... Rxe5 {[%clk
0:01:46.7]} 18. f4 {[%clk 0:01:58.7]} 18... Ree8 {[%clk 0:01:46]} 19. e5 {[%clk
0:01:58.6]} 19... Ng4 {[%clk 0:01:41.5]} 20. Nf3 {[%clk 0:01:50.1]} 20... f6
{[%clk 0:01:26.7]} 21. exf6 {[%clk 0:01:21.3]} 21... Nxf6 {[%clk 0:01:24.3]} 22.
Ne5 {[%clk 0:01:21.6]} 22... Rad8 {[%clk 0:00:55.3]} 23. Bc2 {[%clk 0:01:20.6]}
23... Bc8 {[%clk 0:00:50]} 24. Rad1 {[%clk 0:01:17.5]} 24... Kf8 {[%clk
0:00:47.9]} 25. Ba4 {[%clk 0:01:12.3]} 25... Re6 {[%clk 0:00:42]} 26. c4 {[%clk
0:01:10.3]} 26... Red6 {[%clk 0:00:40]} 27. cxd5 {[%clk 0:01:07.2]} 27... Rxd5
{[%clk 0:00:37]} 28. Rxd5 {[%clk 0:01:07.3]} 28... Rxd5 {[%clk 0:00:36.8]} 29.
Re2 {[%clk 0:01:06.8]} 29... a6 {[%clk 0:00:34]} 30. Bb3 {[%clk 0:01:06.5]}
30... Rd4 {[%clk 0:00:34.1]} 31. Nf3 {[%clk 0:01:03.7]} 31... Rd3 {[%clk
0:00:32.4]} 32. Bc2 {[%clk 0:00:50.7]} 32... Rd6 {[%clk 0:00:29.5]} 33. Ne5
{[%clk 0:00:49.6]} 33... b5 {[%clk 0:00:27.9]} 34. a4 {[%clk 0:00:45.4]} 34...
Be6 {[%clk 0:00:26.6]} 35. f5 {[%clk 0:00:38.9]} 35... Bd5 {[%clk 0:00:20.8]}
36. g4 {[%clk 0:00:39]} 36... Bb7 {[%clk 0:00:19.6]} 37. g5 {[%clk 0:00:36.9]}
37... Nd5 {[%clk 0:00:19.9]} 38. axb5 {[%clk 0:00:35.8]} 38... axb5 {[%clk
0:00:20]} 39. Rf2 {[%clk 0:00:34]} 39... Nb4 {[%clk 0:00:19.8]} 40. Kh2 {[%clk
0:00:24.7]} 40... Nxc2 {[%clk 0:00:19.7]} 41. Rxc2 {[%clk 0:00:24.7]} 41... Rd5
{[%clk 0:00:20.3]} 42. Re2 {[%clk 0:00:25.2]} 42... c4 {[%clk 0:00:20.5]} 43. g4
{[%clk 0:00:20.6]} 43... Rd4 {[%clk 0:00:19.2]} 44. Kg3 {[%clk 0:00:20.5]} 44...
b4 {[%clk 0:00:19.5]} 45. Rc2 {[%clk 0:00:19.5]} 45... Bd5 {[%clk 0:00:18.5]}
46. Re2 {[%clk 0:00:18.2]} 46... c3 {[%clk 0:00:18.1]} 47. bxc3 {[%clk
0:00:19.1]} 47... bxc3 {[%clk 0:00:18.7]} 48. Rc2 {[%clk 0:00:19.7]} 48... Re4
{[%clk 0:00:17.3]} 49. Nd7+ {[%clk 0:00:19.3]} 49... Ke7 {[%clk 0:00:16.9]} 50.
Nb6 {[%clk 0:00:19.9]} 50... Re3+ {[%clk 0:00:14.6]} 51. Kf4 {[%clk 0:00:20.2]}
51... Rf3+ {[%clk 0:00:14.3]} 52. Ke5 {[%clk 0:00:20.7]} 52... Bb7 {[%clk
0:00:14.1]} 53. Nc4 {[%clk 0:00:17.6]} 53... Rg3 {[%clk 0:00:13.5]} 54. f6+
{[%clk 0:00:17.3]} 54... gxf6+ {[%clk 0:00:13.5]} 55. gxf6+ {[%clk 0:00:18.2]}
55... Kf8 {[%clk 0:00:13.6]} 56. Nd6 {[%clk 0:00:17.8]} 56... Ba6 {[%clk
0:00:13.8]} 57. g5 {[%clk 0:00:17.3]} 57... Bf1 {[%clk 0:00:11.3]} 58. Kf4
{[%clk 0:00:16]} 58... Rd3 {[%clk 0:00:10.5]} 59. Nf5 {[%clk 0:00:15.3]} 59...
Bh3 {[%clk 0:00:09.3]} 60. Ne3 {[%clk 0:00:14.5]} 60... Be6 {[%clk 0:00:08.6]}
61. Ke4 {[%clk 0:00:14]} 61... Bb3 {[%clk 0:00:08.9]} 62. Kxd3 {[%clk
0:00:13.8]} 62... Bxc2+ {[%clk 0:00:09.4]} 63. Nxc2 {[%clk 0:00:12]} 63... Kf7
{[%clk 0:00:09.8]} 64. Ke4 {[%clk 0:00:12.2]} 64... h6 {[%clk 0:00:09.4]} 65.
Kf5 {[%clk 0:00:11.7]} 65... h5 {[%clk 0:00:09.6]} 66. g6+ {[%clk 0:00:11.8]}
66... Kf8 {[%clk 0:00:09.5]} 67. Kg5 {[%clk 0:00:12.5]} 67... h4 {[%clk
0:00:09.5]} 68. Kxh4 {[%clk 0:00:12.8]} 1-0